{"text_format":"3","workbook":"xlsx","n_sheets":3,"sheets":["Zusammenfassung","Auto kaufen","Rideshare"],"not_rendered":{"charts":1,"defined_names":33},"read":"whole","date_system":"1900"}

{"sheet":"Zusammenfassung","index":0,"n_rows":16,"n_cols":4,"rows_kept":16}
[null,"Kaufen eines Autos im Vergleich zu Rideshare"]
[null,"Durchschnittliche Reisedistanz"]
[null,"Durchschnittliche Anzahl Fahrten pro Tag",2]
[null,"Durchschnittliche Zeit pro Reise",20,"Minute(n)"]
[null,"Durchschnittliche Entfernung pro Reise",{"v":10,"d":"10.00"},"Meilen"]
[null,"Jährliche Fahrleistung",{"$f":"IFERROR(AverageTripsPerDay*AveDistancePerTrip*365,\"\")","v":{"v":7300,"d":"7,300"}},"Meilen"]
[null,"Zeitkosten"]
[null,"Stundensatz",{"v":20,"d":"20.00 €"}]
[null,"Summe der jährlichen Kosten"]
[" ","Spalte 1","Auto kaufen","Rideshare"]
[null,"Anschaffungskosten",{"$f":"JährlicheAnschaffungskosten","v":{"v":7187.314844765674,"d":"7,187.31 €"}},"-"]
[null,"Kosten für die Pkw-Nutzung",{"$f":"JährlicheNutzungskosten","v":{"v":2990,"d":"2,990.00 €"}},"-"]
[null,"Treibstoffkosten",{"$f":"JährlicheTreibstoffkosten","v":{"v":617.6923076923076,"d":"617.69 €"}},"-"]
[null,"Fahrpreis","-",{"$f":"JährlicherFahrpreis","v":{"v":12340.65,"d":"12,340.65 €"}}]
[null,"Zeitkosten",{"$f":"AnnualCostOfTime_BuyCar","v":{"v":7300,"d":"7,300.00 €"}},{"$f":"AnnualCostOfTime_Ridesharing","v":{"v":2190,"d":"2,190.00 €"}}]
[null,"Jährliche Gesamtkosten",{"$f":"SUBTOTAL(109,Tabelle7[Auto kaufen])","v":{"v":18095.007152457983,"d":"18,095.01 €"}},{"$f":"SUBTOTAL(109,Tabelle7[Rideshare])","v":{"v":14530.65,"d":"14,530.65 €"}}]

{"sheet":"Auto kaufen","index":1,"n_rows":28,"n_cols":4,"rows_kept":28}
[null,"Auto kaufen"]
[null,"Anschaffungskosten"]
[]
[null,"Preis des Autos",{"v":30000,"d":"30,000.00 €"}]
[null,"Mehrwertsteuer",{"v":0.0575,"d":"0.06 €"}]
[null,"Anschaffungsgebühren",{"v":220,"d":"220.00 €"}]
[null,"Anzahlung",{"v":3000,"d":"3,000.00 €"},"Monate"]
[null,"Kreditlaufzeit",{"v":60,"d":"60.00 €"}]
[null,"Zinssatz",{"v":0.045,"d":"0.05 €"}]
[null,"Jährliche Anschaffungskosten",{"$f":"IFERROR(-PMT(Zinssatz,Kreditlaufzeit/12,PriceOfCar*(1+Mehrwertsteuer)-Anzahlung)+(PurchaseFees+Anzahlung)/(Kreditlaufzeit/12),\"\")","v":{"v":7187.314844765674,"d":"7,187.31 €"}}]
[null,{"$f":"IF(JährlicheAnschaffungskosten=\"\",\"\",\"Für eine Kreditlaufzeit von \" & TEXT(Kreditlaufzeit/12,\"0,0\") & \" Jahren\")","v":"Für eine Kreditlaufzeit von 5,0 Jahren"}]
[null,"Kosten für die Pkw-Nutzung"]
[null,"Wartungen/Reparaturen",{"v":1000,"d":"1,000.00 €"},"pro Jahr"]
[null,"Versicherungen",{"v":815,"d":"815.00 €"},"pro Jahr"]
[null,"Registrierung & Steuern",{"v":75,"d":"75.00 €"},"pro Jahr"]
[null,"Parken",{"v":500,"d":"500.00 €"},"pro Jahr"]
[null,"Immobiliensteuer der Garage",{"v":500,"d":"500.00 €"},"pro Jahr"]
[null,"Sonstige Spesen für Garage",{"v":100,"d":"100.00 €"},"pro Jahr"]
[null,"Jährliche Nutzungskosten",{"$f":"SUBTOTAL(109,Tabelle3[Spalte3])","v":{"v":2990,"d":"2,990.00 €"}}]
[null,"Treibstoffkosten"]
[null,"Treibstoffkosten",{"v":3.3,"d":"3.30 €"},"pro Gallone"]
[null,"Kraftstoffeffizienz",39,"Meilen/Gallone"]
[null,"Jährliche Treibstoffkosten",{"$f":"IFERROR(TotalMileage/Kraftstoffeffizienz*Treibstoffkosten,\"\")","v":{"v":617.6923076923076,"d":"617.69 €"}}]
[null,{"$f":"IF(JährlicheTreibstoffkosten=\"\",\"\",\"Basierend auf \" & TEXT(TotalMileage,\"#.##0\") & \" Meilen Gesamtfahrleistung im Jahr\")","v":"Basierend auf 7.300 Meilen Gesamtfahrleistung im Jahr"}]
[null,"Zeitkosten"]
[null,"Mittlere Parkzeit",10,"Minuten"]
[null,"Jährliche Zeitkosten",{"$f":"IFERROR((AveTimePerTrip+AveParkingTime)*AverageTripsPerDay/60*RatePerHour*365,\"\")","v":{"v":7300,"d":"7,300.00 €"}}]
[null,{"$f":"IF(AnnualCostOfTime_BuyCar=\"\",\"\",\"Basierend auf \" & AverageTripsPerDay & \" Fahrten pro Tag von jeweils, \" & AveTimePerTrip + AveParkingTime & \" Minuten und \" & TEXT(RatePerHour,\"#.##0,00 €\") & \" pro Stunde\")","v":"Basierend auf 2 Fahrten pro Tag von jeweils, 30 Minuten und 20,00 € pro Stunde"}]

{"sheet":"Rideshare","index":2,"n_rows":14,"n_cols":4,"rows_kept":14}
[null,"Rideshare"]
[null,"Rideshare-Gebühr"]
[null,"Basistarif",{"v":2.3,"d":"2.30 €"},"pro Fahrt"]
[null,"Distanztarif",{"v":1,"d":"1.00 €"},"pro Meile"]
[null,"Zeittarif",{"v":0.12,"d":"0.12 €"},"pro Minute"]
[null,"Mittlerer Multiplikator für Hauptverkehrszeiten",{"v":2.5,"d":"2.50"}]
[null,"Prozent der Fahrten während des Hauptverkehrszeiten",{"v":0.1,"d":"10%"}]
[null,"Jährlicher Fahrpreis",{"$f":"IFERROR((Basistarif+Distanztarif*AveDistancePerTrip+Zeittarif*AveTimePerTrip)*AverageTripsPerDay*365*((1-ProzentDerFahrtenWährendDesHauptverkehrszeiten)+AveSurgeMultiplier*ProzentDerFahrtenWährendDesHauptverkehrszeiten),\"\")","v":{"v":12340.65,"d":"12,340.65 €"}}]
[null,{"$f":"IF(JährlicherFahrpreis=\"\",\"\",\"Basierend auf \" & AverageTripsPerDay & \" Fahrten pro Tag von, \" & AveTimePerTrip & \" Minuten und \" & AveDistancePerTrip & \" Meilen pro Fahrt\")","v":"Basierend auf 2 Fahrten pro Tag von, 20 Minuten und 10 Meilen pro Fahrt"}]
[null,"Zeitkosten"]
[null,"Durchschnittliche Wartezeit pro Fahrt",{"v":5,"d":"5.00 €"},"Minuten"]
[null,"Produktive Zeit während der Fahrt",{"v":0.8,"d":"0.80 €"}]
[null,"Jährliche Zeitkosten",{"$f":"IFERROR((AveWaitTime+AveTimePerTrip*(1-ProductivePercent))*AverageTripsPerDay/60*RatePerHour*365,\"\")","v":{"v":2190,"d":"2,190.00 €"}}]
[null,{"$f":"IF(AnnualCostOfTime_Ridesharing=\"\",\"\",\"Basierend auf \" & AverageTripsPerDay & \" Fahrten pro Tag von jeweils, \" & AveTimePerTrip & \" Minuten und \" & TEXT(RatePerHour,\"#.##0,00 €\") & \" pro Stunde\")","v":"Basierend auf 2 Fahrten pro Tag von jeweils, 20 Minuten und 20,00 € pro Stunde"}]